fUST/lending_fUST_20250707
["ID","MTS","AMOUNT","RATE_DAILY","PERIOD"]
[370092984,1751878295118,-151.0,0.00019191,2]
[370092985,1751878295127,-500.0,0.00019191,2]
[370092986,1751878295138,-151.0,0.00019191,2]
[370092987,1751878295147,-500.0,0.00019191,2]
[370092988,1751878295157,-151.0,0.00019191,2]
[370092989,1751878295167,-151.0,0.00019191,2]
[370092990,1751878295177,-5000.0,0.00019191,2]
[370092991,1751878295187,-500.0,0.00019191,2]
[370092992,1751878295197,-151.0,0.00019191,2]
[370092993,1751878295207,-500.0,0.00019191,2]
[370092994,1751878295217,-151.0,0.00019191,2]
[370092995,1751878295228,-151.0,0.00019191,2]
[370092996,1751878295238,-151.0,0.00019191,2]
[370092997,1751878295248,-151.0,0.00019191,2]
[370092998,1751878295258,-151.0,0.00019191,2]
[370092999,1751878295269,-151.0,0.00019191,2]
[370093000,1751878295278,-500.0,0.00019191,2]
[370093001,1751878295287,-151.0,0.00019191,2]
[370093002,1751878295297,-151.0,0.00019191,2]
[370093003,1751878295307,-500.0,0.00019191,2]
[370093004,1751878295317,-151.0,0.00019191,2]
[370093005,1751878295326,-500.0,0.00019191,2]
[370093006,1751878295335,-151.0,0.00019191,2]
[370093007,1751878295345,-151.0,0.00019191,2]
[370093008,1751878295355,-151.0,0.00019191,2]
[370093009,1751878295366,-151.0,0.00019191,2]
[370093010,1751878295375,-151.0,0.00019191,2]
[370093011,1751878295385,-500.0,0.00019191,2]
[370093012,1751878295394,-500.0,0.00019191,2]
[370093013,1751878295403,-151.0,0.00019191,2]
[370093014,1751878295415,-500.0,0.00019191,2]
[370093015,1751878295424,-500.0,0.00019191,2]
[370093016,1751878295434,-151.0,0.00019191,2]
[370093017,1751878295444,-500.0,0.00019191,2]
[370093018,1751878295455,-500.0,0.00019191,2]
[370093019,1751878295465,-151.0,0.00019191,2]
[370093020,1751878295474,-151.0,0.00019191,2]
[370093021,1751878295484,-151.0,0.00019191,2]
[370093022,1751878295495,-500.0,0.00019191,2]
[370093023,1751878295504,-151.0,0.00019191,2]
[370093024,1751878295514,-151.0,0.00019191,2]
[370093025,1751878295523,-151.0,0.00019191,2]
[370093026,1751878295533,-361.73078539,0.00019191,2]
[370093027,1751878295543,-151.0,0.00019191,2]
[370093028,1751878295553,-151.0,0.00019191,2]
[370093029,1751878295563,-500.0,0.00019191,2]
[370093030,1751878295573,-248.10037471,0.00019191,2]
[370093031,1751878295583,-151.0,0.00019191,2]
[370093032,1751878295593,-151.0,0.00019191,2]
[370093033,1751878295602,-500.0,0.00019191,2]
[370093034,1751878295612,-151.0,0.00019191,2]
[370093035,1751878295622,-151.0,0.00019191,2]
[370093036,1751878295631,-151.0,0.00019191,2]
[370093037,1751878295642,-151.0,0.00019191,2]
[370093038,1751878295651,-500.0,0.00019191,2]
[370093039,1751878295660,-151.0,0.00019191,2]
[370093040,1751878295669,-151.0,0.00019191,2]
[370093041,1751878295679,-500.0,0.00019191,2]
[370093042,1751878295689,-151.0,0.00019191,2]
[370093043,1751878295698,-500.0,0.00019191,2]
[370093044,1751878295707,-151.0,0.00019191,2]
[370093045,1751878295717,-500.0,0.00019191,2]
[370093046,1751878295726,-151.0,0.00019191,2]
[370093047,1751878295736,-151.0,0.00019191,2]
[370093048,1751878295745,-151.0,0.00019191,2]
[370093049,1751878295755,-151.0,0.00019191,2]
[370093050,1751878295764,-151.0,0.00019191,2]
[370093051,1751878295773,-151.0,0.00019191,2]
[370093052,1751878295782,-23400.0,0.000192,16]
[370093053,1751878295791,-151.0,0.000192,2]
[370093054,1751878295801,-160.955765,0.000192,2]
[370093055,1751878295811,-160.955765,0.000192,2]
[370093056,1751878295821,-1240.905189,0.000192,2]
[370093057,1751878295834,-1240.905189,0.000192,2]
[370093058,1751878295844,-500.0,0.00019213,2]
[370093059,1751878295854,-2000.0,0.00019216,2]
[370093060,1751878295865,-716.195754,0.00019246,2]
[370093061,1751878295875,-350.876114,0.00019249,2]
[370093062,1751878295885,-151.0,0.00019266,2]
[370093063,1751878295894,-151.0,0.00019266,2]
[370093064,1751878295903,-151.0,0.00019266,2]
[370093065,1751878295912,-211.563781,0.00019266,2]
[370093066,1751878295922,-211.563781,0.00019266,2]
[370093067,1751878295933,-151.0,0.00019266,2]
[370093068,1751878295943,-151.0,0.00019266,2]
[370093069,1751878295953,-151.0,0.00019266,2]
[370093070,1751878295964,-151.0,0.00019267,2]
[370093071,1751878295974,-151.0,0.00019267,2]
[370093072,1751878295985,-503.491747,0.00019267,2]
[370093073,1751878295995,-503.491747,0.00019267,2]
[370093074,1751878296004,-161.842147,0.00019267,2]
[370093075,1751878296013,-273.721132,0.00019267,2]
[370093076,1751878296022,-273.721132,0.00019267,2]
[370093077,1751878296032,-158.55,0.00019267,2]
[370093078,1751878296041,-158.55,0.00019267,2]
[370093079,1751878296050,-500.0,0.00019296,2]
[370093080,1751878296060,-151.0,0.00019296,2]
[370093081,1751878296070,-151.0,0.00019296,2]
[370093082,1751878296079,-166.455343,0.00019296,2]
[370093083,1751878296090,-166.455343,0.00019296,2]
[370093084,1751878296101,-742.6949969,0.00019301,2]
[370093085,1751878296111,-475.24,0.00019326,2]
[370093086,1751878296123,-460.0,0.00019326,2]
[370093087,1751878296134,-634.64,0.00019326,2]
[370093088,1751878296144,-460.0,0.00019326,2]
[370093089,1751878296153,-460.0,0.00019326,2]
[370093090,1751878296164,-578.27,0.00019326,2]
[370093091,1751878296174,-714.52,0.00019326,2]
[370093092,1751878296184,-3372.58,0.00019326,2]
[370093093,1751878296193,-460.0,0.00019326,2]
[370093094,1751878296203,-557.47,0.00019326,2]
[370093095,1751878296213,-476.15,0.00019326,2]
[370093096,1751878296223,-277.861526,0.00019329,2]
[370093097,1751878296232,-277.861526,0.00019329,2]
[370093098,1751878296242,-151.0,0.00019329,2]
[370093099,1751878296256,-151.0,0.00019329,2]
[370093100,1751878296265,-172.762535,0.00019329,2]
[370093101,1751878296274,-172.762535,0.00019329,2]
[370093102,1751878296283,-151.0,0.00019329,2]
[370093103,1751878296292,-151.0,0.00019329,2]
[370093104,1751878296302,-151.0,0.00019329,2]
[370093105,1751878296311,-251.765691,0.00019329,2]
[370093106,1751878296320,-251.765691,0.00019329,2]
[370093107,1751878296330,-1152.046431,0.00019329,2]
[370093108,1751878296339,-1152.046431,0.00019329,2]
[370093109,1751878296349,-151.0,0.00019329,2]
[370093110,1751878296358,-320.333785,0.00019329,2]
[370093111,1751878296368,-320.333785,0.00019329,2]
[370093112,1751878296377,-190.6115,0.00019329,2]
[370093113,1751878296387,-190.6115,0.00019329,2]
[370093114,1751878296396,-463.884223,0.00019329,2]
[370093115,1751878296406,-463.884223,0.00019329,2]
[370093116,1751878296415,-309.444679,0.00019329,2]
[370093117,1751878296424,-309.444679,0.00019329,2]
[370093118,1751878296434,-151.0,0.00019329,2]
[370093119,1751878296443,-584.495755,0.00019329,2]
[370093120,1751878296452,-584.495755,0.00019329,2]
[370093121,1751878296462,-264.124102,0.00019329,2]
[370093122,1751878296471,-264.124102,0.00019329,2]
[370093123,1751878296481,-902.138538,0.00019329,2]
[370093124,1751878296491,-902.138538,0.00019329,2]
[370093125,1751878296500,-174.567543,0.00019329,2]
[370093126,1751878296510,-100000.0,0.00019329,2]
[370093127,1751878296519,-460.0,0.0001933,2]
[370093128,1751878296529,-460.0,0.0001933,2]
[370093129,1751878296539,-460.0,0.0001933,2]
[370093130,1751878296549,-460.0,0.0001933,2]
[370093131,1751878296558,-460.0,0.0001933,2]
[370093132,1751878296568,-460.0,0.0001933,2]
[370093133,1751878296577,-460.0,0.0001933,2]
[370093134,1751878296587,-5018.54,0.0001933,2]
[370093135,1751878296596,-465.6469912,0.0001933,2]
[370093136,1751878296605,-473.43,0.0001933,2]
[370093137,1751878296614,-877.49,0.0001933,2]
[370093138,1751878296623,-978.43,0.0001933,2]
[370093139,1751878296633,-460.0,0.0001933,2]
[370093140,1751878296643,-460.0,0.0001933,2]
[370093141,1751878296652,-460.0,0.0001933,2]
[370093142,1751878296661,-4865.84,0.0001933,2]
[370093143,1751878296670,-460.0,0.0001933,2]
[370093144,1751878296679,-8429.87,0.0001933,2]
[370093145,1751878296688,-1078.12,0.0001933,2]
[370093146,1751878296698,-460.0,0.0001933,2]
[370093147,1751878296708,-460.0,0.0001933,2]
[370093148,1751878296718,-460.0,0.0001933,2]
[370093149,1751878296728,-814.88,0.0001933,2]
[370093150,1751878296737,-1523.08,0.0001933,2]
[370093151,1751878296747,-460.0,0.0001933,2]
[370093152,1751878296757,-350.876114,0.00019331,2]
[370093153,1751878296767,-758.47,0.00019331,2]
[370093154,1751878296776,-460.0,0.00019331,2]
[370093155,1751878296785,-460.0,0.00019331,2]
[370093156,1751878296795,-460.0,0.00019331,2]
[370093157,1751878296804,-460.0,0.00019331,2]
[370093158,1751878296813,-648.63,0.00019331,2]
[370093159,1751878296824,-4741.33,0.00019331,2]
[370093160,1751878296835,-815.67,0.00019331,2]
[370093161,1751878296844,-4342.85,0.00019331,2]
[370093162,1751878296854,-460.0,0.00019331,2]
[370093163,1751878296863,-460.0,0.00019331,2]
[370093164,1751878296874,-1322.28,0.00019331,2]
[370093165,1751878296884,-460.0,0.00019332,2]
[370093166,1751878296893,-612.32,0.00019332,2]
[370093167,1751878296905,-460.0,0.00019332,2]
[370093168,1751878296914,-460.0,0.00019332,2]
[370093169,1751878296924,-978.47,0.00019332,2]
[370093170,1751878296934,-1929.95,0.00019332,2]
[370093171,1751878296944,-160.44642835,0.00019332,2]
[370093172,1751878296953,-479.04,0.00019332,2]
[370093173,1751878296965,-460.0,0.00019332,2]
[370093174,1751878296974,-460.0,0.00019332,2]
[370093175,1751878296984,-460.0,0.00019332,2]
[370093176,1751878296994,-961.6,0.00019332,2]
[370093177,1751878297004,-1232.5,0.00019332,2]
[370093178,1751878297013,-2371.65,0.00019332,2]
[370093179,1751878297023,-460.0,0.00019332,2]
[370093180,1751878297034,-1116.74,0.00019332,2]
[370093181,1751878297043,-4190.5,0.00019332,2]
[370093182,1751878297055,-460.0,0.00019332,2]
[370093183,1751878297064,-460.0,0.00019334,2]
[370093184,1751878297073,-460.0,0.00019334,2]
[370093185,1751878297083,-460.0,0.00019334,2]
[370093186,1751878297092,-460.0,0.00019334,2]
[370093187,1751878297101,-504.54,0.00019334,2]
[370093188,1751878297111,-460.0,0.00019334,2]
[370093189,1751878297121,-460.0,0.00019334,2]
[370093190,1751878297130,-460.0,0.00019334,2]
[370093191,1751878297140,-813.31,0.00019334,2]
[370093192,1751878297149,-460.0,0.00019334,2]
[370093193,1751878297159,-696.66,0.00019334,2]
[370093194,1751878297170,-458.65825922,0.00019334,2]
[370093195,1751878297180,-460.0,0.00019334,2]
[370093196,1751878297190,-460.0,0.00019334,2]
[370093197,1751878297370,-460.0,0.00019334,2]
[370093198,1751878297383,-460.0,0.00019334,2]
[370093199,1751878297392,-460.0,0.00019334,2]
[370093200,1751878297403,-460.0,0.00019334,2]
[370093201,1751878297412,-460.0,0.00019334,2]
[370093202,1751878297422,-460.0,0.00019334,2]
[370093203,1751878297432,-460.0,0.00019334,2]
[370093204,1751878297442,-642.4,0.00019334,2]
[370093205,1751878297451,-989.64,0.00019334,2]
[370093206,1751878297460,-591.78,0.00019334,2]
[370093207,1751878297470,-460.0,0.00019334,2]
[370093208,1751878297480,-460.0,0.00019334,2]
[370093209,1751878297489,-549.97,0.00019334,2]
[370093210,1751878297499,-460.0,0.00019334,2]
[370093211,1751878297508,-668.91,0.00019334,2]
[370093212,1751878297518,-460.0,0.00019334,2]
[370093213,1751878297527,-460.0,0.00019334,2]
[370093214,1751878297537,-1175.75,0.00019334,2]
[370093215,1751878297547,-460.0,0.00019334,2]
[370093216,1751878297556,-575.32,0.00019334,2]
[370093217,1751878297566,-501.04,0.00019334,2]
[370093218,1751878297576,-460.0,0.00019334,2]
[370093219,1751878297586,-460.0,0.00019334,2]
[370093220,1751878297595,-460.0,0.00019334,2]
[370093221,1751878297604,-460.0,0.00019334,2]
[370093222,1751878297614,-460.0,0.00019334,2]
[370093223,1751878297624,-1816.74,0.00019334,2]
[370093224,1751878297634,-460.0,0.00019334,2]
[370093225,1751878297644,-460.0,0.00019334,2]
[370093226,1751878297654,-627.71,0.00019334,2]
[370093227,1751878297666,-1190.73,0.00019334,2]
[370093228,1751878297677,-460.0,0.00019334,2]
[370093229,1751878297689,-1436.76,0.00019334,2]
[370093230,1751878297699,-460.0,0.00019334,2]
[370093231,1751878297709,-509.16103536,0.00019334,2]
[370093232,1751878297718,-744.3,0.00019334,2]
[370093233,1751878297727,-460.0,0.00019335,2]
[370093234,1751878297737,-460.0,0.00019335,2]
[370093235,1751878297748,-460.0,0.00019335,2]
[370093236,1751878297758,-222.92865922,0.00019335,2]
[370093237,1751878297767,-193.67551969,0.00019335,2]
[370093238,1751878297777,-1626.87,0.00019335,2]
[370093239,1751878297787,-1041.83,0.00019335,2]
[370093240,1751878297796,-460.0,0.00019335,2]
[370093241,1751878297806,-460.0,0.00019335,2]
[370093242,1751878297816,-1219.94,0.00019335,2]
[370093243,1751878297829,-11783.72,0.00019335,2]
[370093244,1751878297839,-516.28,0.00019335,2]
[370093245,1751878297849,-1126.4,0.00019335,2]
[370093246,1751878297860,-3083.89,0.00019335,2]
[370093247,1751878297873,-746.91,0.00019335,2]
[370093248,1751878297882,-460.0,0.00019335,2]
[370093249,1751878297892,-1051.67,0.00019335,2]
[370093250,1751878297901,-460.0,0.00019336,2]
[370093251,1751878297910,-460.0,0.00019336,2]
[370093252,1751878297920,-566.95,0.00019336,2]
[370093253,1751878297929,-591.6,0.00019336,2]
[370093254,1751878297939,-460.0,0.00019336,2]
[370093255,1751878297948,-460.0,0.00019336,2]
[370093256,1751878297958,-409.89287425,0.00019336,2]
[370093257,1751878297967,-770.17471178,0.00019356,2]
[370093258,1751878297977,-500.0,0.00019373,2]
[370093259,1751878297987,-500.0,0.00019373,2]
[370093260,1751878297996,-500.0,0.00019373,2]
[370093261,1751878298005,-500.33332493,0.00019373,2]
[370093262,1751878298015,-500.0,0.00019373,2]
[370093263,1751878298024,-500.0,0.00019373,2]
[370093264,1751878298034,-346.99310496,0.00019373,2]
[370093265,1751878298044,-500.0,0.00019373,2]
[370093266,1751878298053,-160.22316045,0.00019373,2]
[370093267,1751878298063,-600.0,0.00019373,2]
[370093268,1751878298073,-160.2186279,0.00019373,2]
[370093269,1751878298082,-290.43601306,0.00019373,2]
[370093270,1751878298092,-500.0,0.00019373,2]
[370093271,1751878298101,-500.0,0.00019373,2]
[370093272,1751878298111,-500.0,0.00019373,2]
[370093273,1751878298121,-500.0,0.00019373,2]
[370093274,1751878298130,-160.22377676,0.00019373,2]
[370093275,1751878298140,-167.63280588,0.00019373,2]
[370093276,1751878298149,-500.0,0.00019373,2]
[370093277,1751878298159,-160.22291142,0.00019373,2]
[370093278,1751878298168,-500.0,0.00019373,2]
[370093279,1751878298178,-500.0,0.00019373,2]
[370093280,1751878298187,-500.0,0.00019373,2]
[370093281,1751878298197,-500.0,0.00019373,2]
[370093282,1751878298206,-500.0,0.00019373,2]
[370093283,1751878298216,-500.0,0.00019373,2]
[370093284,1751878298225,-500.0,0.00019373,2]
[370093285,1751878298235,-500.0,0.00019373,2]
[370093286,1751878298244,-500.0,0.00019373,2]
[370093287,1751878298254,-500.0,0.00019373,2]
[370093288,1751878298264,-500.0,0.00019373,2]
[370093289,1751878298274,-500.0,0.00019373,2]
[370093290,1751878298284,-500.0,0.00019378,2]
[370093291,1751878298295,-1680.07552712,0.00019383,2]
[370093292,1751878298305,-798.67117612,0.00019411,2]
[370093293,1751878298315,-350.876114,0.00019413,2]
[370093294,1751878298325,-460.0,0.00019434,2]
[370093295,1751878298334,-1466.61,0.00019434,2]
[370093296,1751878298344,-1693.65,0.00019434,2]
[370093297,1751878298354,-460.0,0.00019434,2]
[370093298,1751878298363,-511.73,0.00019434,2]
[370093299,1751878298372,-5131.36,0.00019434,2]
[370093300,1751878298382,-460.0,0.00019434,2]
[370093301,1751878298393,-927.78,0.00019434,2]
[370093302,1751878298403,-2375.1,0.00019434,2]
[370093303,1751878298413,-4148.36,0.00019434,2]
[370093304,1751878298422,-460.0,0.00019434,2]
[370093305,1751878298431,-1006.41,0.00019434,2]
[370093306,1751878298442,-460.0,0.00019434,2]
[370093307,1751878298452,-9521.95,0.00019434,2]
[370093308,1751878298461,-2677.89,0.00019434,2]
[370093309,1751878298471,-927.92,0.00019434,2]
[370093310,1751878298481,-460.0,0.00019434,2]
[370093311,1751878298490,-460.0,0.00019435,2]
[370093312,1751878298500,-460.0,0.00019435,2]
[370093313,1751878298509,-652.73,0.00019435,2]
[370093314,1751878298519,-460.0,0.00019435,2]
[370093315,1751878298529,-460.0,0.00019435,2]
[370093316,1751878298539,-460.0,0.00019435,2]
[370093317,1751878298548,-460.0,0.00019435,2]
[370093318,1751878298557,-460.0,0.00019435,2]
[370093319,1751878298567,-524.69409612,0.00019435,2]
[370093320,1751878298577,-460.0,0.00019435,2]
[370093321,1751878298587,-460.0,0.00019435,2]
[370093322,1751878298597,-460.0,0.00019435,2]
[370093323,1751878298606,-460.0,0.00019435,2]
[370093324,1751878298615,-464.42714235,0.00019435,2]
[370093325,1751878298625,-460.0,0.00019435,2]
[370093326,1751878298635,-460.0,0.00019435,2]
[370093327,1751878298644,-590.05,0.00019435,2]
[370093328,1751878298653,-642.41,0.00019435,2]
[370093329,1751878298663,-460.0,0.00019435,2]
[370093330,1751878298672,-460.0,0.00019435,2]
[370093331,1751878298682,-1814.25,0.00019435,2]
[370093332,1751878298692,-201.439692,0.00019435,2]
[370093333,1751878298701,-460.0,0.00019435,2]
[370093334,1751878298711,-460.0,0.00019435,2]
[370093335,1751878298722,-780.98,0.00019435,2]
[370093336,1751878298733,-460.0,0.00019435,2]
[370093337,1751878298744,-550.93879896,0.00019435,2]
[370093338,1751878298754,-496.72988342,0.00019435,2]
[370093339,1751878298764,-151.0,0.00019435,2]
[370093340,1751878298775,-739.46,0.00019435,2]
[370093341,1751878298784,-460.0,0.00019435,2]
[370093342,1751878298795,-460.0,0.00019435,2]
[370093343,1751878298804,-1473.58,0.00019435,2]
[370093344,1751878298815,-460.0,0.00019435,2]
[370093345,1751878298827,-460.0,0.00019435,2]
[370093346,1751878298837,-547.93668276,0.00019435,2]
[370093347,1751878298848,-460.0,0.00019435,2]
[370093348,1751878298857,-537.97,0.00019435,2]
[370093349,1751878298866,-474.52,0.00019435,2]
[370093350,1751878298876,-460.0,0.00019435,2]
[370093351,1751878298885,-460.0,0.00019435,2]
[370093352,1751878298895,-460.0,0.00019435,2]
[370093353,1751878298904,-460.0,0.00019435,2]
[370093354,1751878298914,-515.18,0.00019435,2]
[370093355,1751878298923,-463.45,0.00019435,2]
[370093356,1751878298932,-569.19,0.00019435,2]
[370093357,1751878298942,-460.0,0.00019435,2]
[370093358,1751878298951,-474.81,0.00019435,2]
[370093359,1751878298962,-590.63,0.00019435,2]
[370093360,1751878298971,-517.21,0.00019435,2]
[370093361,1751878298980,-460.0,0.00019435,2]
[370093362,1751878298989,-600.59,0.00019435,2]
[370093363,1751878298998,-460.0,0.00019435,2]
[370093364,1751878299009,-272.50166,0.00019435,2]
[370093365,1751878299019,-272.50166,0.00019435,2]
[370093366,1751878299029,-460.14,0.00019435,2]
[370093367,1751878299040,-460.0,0.00019435,2]
[370093368,1751878299050,-460.0,0.00019435,2]
[370093369,1751878299060,-460.0,0.00019435,2]
[370093370,1751878299070,-503.25,0.00019435,2]
[370093371,1751878299079,-500.0,0.00019435,2]
[370093372,1751878299088,-1790.38,0.00019435,2]
[370093373,1751878299099,-1020.84,0.00019435,2]
[370093374,1751878299108,-500.0,0.00019435,2]
[370093375,1751878299119,-460.0,0.00019435,2]
[370093376,1751878299129,-628.75,0.00019435,2]
[370093377,1751878299138,-724.26,0.00019435,2]
[370093378,1751878299147,-599.29,0.00019435,2]
[370093379,1751878299157,-618.64,0.00019435,2]
[370093380,1751878299166,-460.0,0.00019435,2]
[370093381,1751878299176,-460.0,0.00019435,2]
[370093382,1751878299185,-460.0,0.00019435,2]
[370093383,1751878299196,-513.26,0.00019435,2]
[370093384,1751878299205,-736.7,0.00019435,2]
[370093385,1751878299216,-2101.7,0.00019435,2]
[370093386,1751878299226,-701.27,0.00019435,2]
[370093387,1751878299235,-460.0,0.00019435,2]
[370093388,1751878299244,-501.61,0.00019435,2]
[370093389,1751878299254,-621.18,0.00019435,2]
[370093390,1751878299264,-460.0,0.00019435,2]
[370093391,1751878299275,-197.46680754,0.00019435,2]
[370093392,1751878299285,-460.0,0.00019435,2]
[370093393,1751878299295,-460.0,0.00019435,2]
[370093394,1751878299304,-414.38424089,0.00019435,2]
[370093395,1751878299314,-460.0,0.00019435,2]
[370093396,1751878299324,-1588.08,0.00019435,2]
[370093397,1751878299333,-460.0,0.00019435,2]
[370093398,1751878299343,-1502.2,0.00019435,2]
[370093399,1751878299353,-603.3,0.00019435,2]
[370093400,1751878299365,-645.22,0.00019435,2]
[370093401,1751878299374,-460.0,0.00019435,2]
[370093402,1751878299384,-460.0,0.00019435,2]
[370093403,1751878299395,-460.0,0.00019435,2]
[370093404,1751878299404,-460.0,0.00019435,2]
[370093405,1751878299415,-802.16,0.00019435,2]
[370093406,1751878299425,-460.0,0.00019435,2]
[370093407,1751878299434,-582.95,0.00019435,2]
[370093408,1751878299444,-460.0,0.00019435,2]
[370093409,1751878299454,-518.66,0.00019435,2]
[370093410,1751878299464,-461.06,0.00019435,2]
[370093411,1751878299473,-460.0,0.00019435,2]
[370093412,1751878299483,-882.2,0.00019435,2]
[370093413,1751878299493,-460.0,0.00019435,2]
[370093414,1751878299502,-460.0,0.00019435,2]
[370093415,1751878299512,-466.33,0.00019435,2]
[370093416,1751878299522,-811.29,0.00019435,2]
[370093417,1751878299531,-460.0,0.00019437,2]
[370093418,1751878299541,-460.0,0.00019437,2]
[370093419,1751878299550,-546.56981067,0.00019437,2]
[370093420,1751878299560,-575.59,0.00019437,2]
[370093421,1751878299570,-460.0,0.00019437,2]
[370093422,1751878299579,-460.0,0.00019437,2]
[370093423,1751878299588,-415.36541945,0.00019437,2]
[370093424,1751878299598,-320.50335659,0.00019437,2]
[370093425,1751878299608,-773.469148,0.00019439,2]
[370093426,1751878299617,-773.469148,0.00019439,2]
[370093427,1751878299627,-670.12472,0.00019439,2]
[370093428,1751878299638,-670.12472,0.00019439,2]
[370093429,1751878299649,-549.339809,0.00019439,2]
[370093430,1751878299658,-211.885957,0.0001944,2]
[370093431,1751878299669,-211.885957,0.0001944,2]
[370093432,1751878299678,-203.424781,0.0001944,2]
[370093433,1751878299688,-203.424781,0.0001944,2]
[370093434,1751878299697,-151.0,0.0001944,2]
[370093435,1751878299707,-460.0,0.0001944,2]
[370093436,1751878299716,-1820.82,0.0001944,2]
[370093437,1751878299724,-460.0,0.0001944,2]
[370093438,1751878299734,-460.0,0.0001944,2]
[370093439,1751878299743,-697.17,0.0001944,2]
[370093440,1751878299752,-460.0,0.0001944,2]
[370093441,1751878299762,-460.0,0.0001944,2]
[370093442,1751878299771,-584.48,0.0001944,2]
[370093443,1751878299780,-686.19,0.0001944,2]
[370093444,1751878299789,-460.0,0.0001944,2]
[370093445,1751878299798,-460.0,0.0001944,2]
[370093446,1751878299807,-460.0,0.0001944,2]
[370093447,1751878299817,-460.0,0.0001944,2]
[370093448,1751878299828,-891.26,0.0001944,2]
[370093449,1751878299837,-460.0,0.0001944,2]
[370093450,1751878299846,-597.07,0.0001944,2]
[370093451,1751878299855,-460.0,0.0001944,2]
[370093452,1751878299864,-511.02,0.0001944,2]
[370093453,1751878299874,-461.69,0.0001944,2]
[370093454,1751878299883,-460.0,0.0001944,2]
[370093455,1751878299892,-460.0,0.0001944,2]
[370093456,1751878299905,-460.0,0.0001944,2]
[370093457,1751878299914,-460.0,0.0001944,2]
[370093458,1751878299923,-460.0,0.0001944,2]
[370093459,1751878299933,-151.0,0.00019441,2]
[370093460,1751878299942,-151.0,0.00019441,2]
[370093461,1751878299951,-151.0,0.00019441,2]
[370093462,1751878299960,-302.740728,0.00019441,2]
[370093463,1751878299969,-302.740728,0.00019441,2]
[370093464,1751878299979,-3702.021644,0.00019441,2]
[370093465,1751878299988,-3702.021644,0.00019441,2]
[370093466,1751878299997,-460.0,0.00019441,2]
[370093467,1751878300007,-460.0,0.00019441,2]
[370093468,1751878300016,-189.64653,0.00019441,2]
[370093469,1751878300026,-409.16279511,0.00019441,2]
[370093470,1751878300037,-189.64653,0.00019441,2]
[370093471,1751878300047,-460.0,0.00019441,2]
[370093472,1751878300056,-460.0,0.00019441,2]
[370093473,1751878300230,-460.0,0.00019441,2]
[370093474,1751878300240,-579.14,0.00019441,2]
[370093475,1751878300250,-211.911253,0.00019441,2]
[370093476,1751878300259,-211.911253,0.00019441,2]
[370093477,1751878300268,-151.0,0.00019441,2]
[370093478,1751878300277,-500.0,0.00019461,2]
[370093479,1751878300287,-1234.27986924,0.00019464,2]
[370093480,1751878300297,-151.0,0.00019466,2]
[370093481,1751878300307,-151.0,0.00019466,2]
[370093482,1751878300317,-234.572647,0.00019466,2]
[370093483,1751878300327,-234.572647,0.00019466,2]